fUST/lending_fUST_20260521
["ID","MTS","AMOUNT","RATE_DAILY","PERIOD"]
[422736649,1779340241000,-500.0,9.863e-05,2]
[422736642,1779340241000,-500.0,9.863e-05,2]
[422736641,1779340241000,-500.0,9.863e-05,2]
[422736651,1779340241000,-500.0,9.863e-05,2]
[422736645,1779340241000,-1262.52,9.863e-05,2]
[422736644,1779340241000,-1047.8,9.863e-05,2]
[422736646,1779340241000,-500.0,9.863e-05,2]
[422736652,1779340241000,-172.8,9.863e-05,2]
[422736654,1779340241000,-910.19,9.863e-05,2]
[422736655,1779340241000,-500.0,9.863e-05,2]
[422736656,1779340241000,-500.0,9.863e-05,2]
[422736653,1779340241000,-500.0,9.863e-05,2]
[422736657,1779340241000,-4531.35,9.863e-05,2]
[422736658,1779340241000,-1336.69198537,9.889e-05,2]
[422736662,1779340241000,-1090.674562,9.998e-05,2]
[422736660,1779340241000,-2376.34130733,9.989e-05,2]
[422736659,1779340241000,-197.0,9.97e-05,2]
[422736663,1779340241000,-2021.349125,9.998e-05,2]
[422736664,1779340241000,-71546.35385614,9.999e-05,2]
[422736611,1779340241000,-500.0,9.589e-05,2]
[422736647,1779340241000,-720.17,9.863e-05,2]
[422736640,1779340241000,-1391.44,9.863e-05,2]
[422736661,1779340241000,-160.0,9.998e-05,2]
[422736639,1779340241000,-500.0,9.863e-05,2]
[422736638,1779340241000,-500.0,9.863e-05,2]
[422736613,1779340241000,-500.0,9.589e-05,2]
[422736615,1779340241000,-500.0,9.589e-05,2]
[422736614,1779340241000,-910.19,9.589e-05,2]
[422736622,1779340241000,-4379.036242,9.796e-05,2]
[422736621,1779340241000,-2269.518121,9.796e-05,2]
[422736618,1779340241000,-190.0381,9.726e-05,2]
[422736617,1779340241000,-4531.35,9.589e-05,2]
[422736619,1779340241000,-823.0,9.739e-05,2]
[422736620,1779340241000,-160.0,9.796e-05,2]
[422736616,1779340241000,-500.0,9.589e-05,2]
[422736625,1779340241000,-500.0,9.863e-05,2]
[422736623,1779340241000,-4986.64974009,9.8e-05,2]
[422736626,1779340241000,-500.0,9.863e-05,2]
[422736628,1779340241000,-500.0,9.863e-05,2]
[422736632,1779340241000,-500.0,9.863e-05,2]
[422736633,1779340241000,-742.60665854,9.863e-05,2]
[422736636,1779340241000,-6631.65,9.863e-05,2]
[422736631,1779340241000,-500.0,9.863e-05,2]
[422736637,1779340241000,-1121.42,9.863e-05,2]
[422736634,1779340241000,-880.0,9.863e-05,2]
[422736630,1779340241000,-500.0,9.863e-05,2]
[422736629,1779340241000,-421.55134886,9.863e-05,2]
[422736635,1779340241000,-500.0,9.863e-05,2]
[422736627,1779340241000,-500.0,9.863e-05,2]
[422736665,1779340242000,-4784.15949459,7.219e-05,2]
[422739158,1779340449000,165.87095,6.435e-05,2]
[422739157,1779340449000,165.87095,3.282e-05,2]
[422739172,1779340588000,300.0,6.435e-05,2]
[422739175,1779340671000,-1466.2344158,0.00019165,120]
[422739177,1779340671000,-294.36866579,0.00019165,120]
[422739176,1779340671000,-2296.33310281,0.00019165,120]
[422739183,1779340671000,-1186.86721045,0.00019165,120]
[422739178,1779340671000,-982.88679723,0.00019165,120]
[422739179,1779340671000,-741.9675905,0.00019165,120]
[422739181,1779340671000,-851.24679795,0.00019165,120]
[422739182,1779340671000,-2300.0,0.00019165,120]
[422739180,1779340671000,-3080.6995956,0.00019165,120]
[422739190,1779340671000,-560.39030987,0.00019165,120]
[422739184,1779340671000,-1464.60926624,0.00019165,120]
[422739185,1779340671000,-2824.0555673,0.00019165,120]
[422739192,1779340671000,-338.81466489,0.00019165,120]
[422739193,1779340671000,-337.32839715,0.00019165,120]
[422739191,1779340671000,-230.9234653,0.00019165,120]
[422739194,1779340671000,-585.60830001,0.00019165,120]
[422739188,1779340671000,-1626.9709806,0.00019165,120]
[422739186,1779340671000,-1081.62984546,0.00019165,120]
[422739187,1779340671000,-1545.46649113,0.00019165,120]
[422739189,1779340671000,-357.32747866,0.00019165,120]
[422739204,1779340672000,-2094.50479455,0.00019165,120]
[422739208,1779340672000,-200.0,0.00019165,120]
[422739207,1779340672000,-1237.89833772,0.00019165,120]
[422739206,1779340672000,-167.29522673,0.00019165,120]
[422739205,1779340672000,-204.56019544,0.00019165,120]
[422739202,1779340672000,-522.05285017,0.00019165,120]
[422739203,1779340672000,-581.67227402,0.00019165,120]
[422739195,1779340672000,-439.10119668,0.00019165,120]
[422739200,1779340672000,-1886.98108274,0.00019165,120]
[422739199,1779340672000,-368.28810503,0.00019165,120]
[422739198,1779340672000,-378.59513542,0.00019165,120]
[422739197,1779340672000,-967.81189793,0.00019165,120]
[422739196,1779340672000,-2139.02732273,0.00019165,120]
[422739209,1779340672000,-163.18045515,0.00019165,120]
[422739201,1779340672000,-182.4621558,0.00019165,120]
[422739210,1779340672000,-1129.27777345,0.00019165,120]
[422739221,1779340672000,-797.1330514,0.00019165,120]
[422739212,1779340672000,-660.7903111,0.00019165,120]
[422739211,1779340672000,-2000.0,0.00019165,120]
[422739228,1779340672000,-1540.11601316,0.00019165,120]
[422739227,1779340672000,-5000.0,0.00019165,120]
[422739225,1779340672000,-601.0,0.00019165,120]
[422739223,1779340672000,-601.0,0.00019165,120]
[422739224,1779340672000,-601.0,0.00019165,120]
[422739220,1779340672000,-384.866519,0.00019165,120]
[422739222,1779340672000,-311.121253,0.00019165,120]
[422739219,1779340672000,-45112.39859618,0.00019165,120]
[422739217,1779340672000,-620.0,0.00019165,120]
[422739218,1779340672000,-48390.72505731,0.00019165,120]
[422739216,1779340672000,-170.0,0.00019165,120]
[422739215,1779340672000,-4717.72377117,0.00019165,120]
[422739213,1779340672000,-406.05613002,0.00019165,120]
[422739214,1779340672000,-313.60569482,0.00019165,120]
[422739226,1779340672000,-601.0,0.00019165,120]
[422739239,1779340673000,-428.94735094,0.00019165,120]
[422739247,1779340673000,-214.47367544,0.00019165,120]
[422739244,1779340673000,-428.94735094,0.00019165,120]
[422739242,1779340673000,-428.94735094,0.00019165,120]
[422739243,1779340673000,-428.94735094,0.00019165,120]
[422739241,1779340673000,-428.94735094,0.00019165,120]
[422739240,1779340673000,-428.94735094,0.00019165,120]
[422739237,1779340673000,-428.94735094,0.00019165,120]
[422739230,1779340673000,-1540.11601316,0.00019165,120]
[422739234,1779340673000,-428.94735094,0.00019165,120]
[422739236,1779340673000,-428.94735094,0.00019165,120]
[422739233,1779340673000,-428.94735094,0.00019165,120]
[422739235,1779340673000,-428.94735094,0.00019165,120]
[422739232,1779340673000,-192.41472409,0.00019165,120]
[422739231,1779340673000,-428.94735094,0.00019165,120]
[422739229,1779340673000,-1540.11601316,0.00019165,120]
[422739238,1779340673000,-428.94735094,0.00019165,120]
[422739245,1779340673000,-428.94735094,0.00019165,120]
[422739246,1779340673000,-214.47367544,0.00019165,120]
[422739249,1779340673000,-1562.31511574,0.00019165,120]
[422739248,1779340673000,-1562.31511574,0.00019165,120]
[422739266,1779340673000,-1562.31511574,0.00019165,120]
[422739267,1779340673000,-1562.31511574,0.00019165,120]
[422739265,1779340673000,-1562.31511574,0.00019165,120]
[422739264,1779340673000,-1562.31511574,0.00019165,120]
[422739263,1779340673000,-1562.31511574,0.00019165,120]
[422739262,1779340673000,-1562.31511574,0.00019165,120]
[422739260,1779340673000,-1562.31511574,0.00019165,120]
[422739259,1779340673000,-1562.31511574,0.00019165,120]
[422739261,1779340673000,-1562.31511574,0.00019165,120]
[422739258,1779340673000,-1562.31511574,0.00019165,120]
[422739257,1779340673000,-1562.31511574,0.00019165,120]
[422739251,1779340673000,-1562.31511574,0.00019165,120]
[422739252,1779340673000,-1562.31511574,0.00019165,120]
[422739253,1779340673000,-1562.31511574,0.00019165,120]
[422739250,1779340673000,-1562.31511574,0.00019165,120]
[422739254,1779340673000,-1562.31511574,0.00019165,120]
[422739256,1779340673000,-1562.31511574,0.00019165,120]
[422739255,1779340673000,-1562.31511574,0.00019165,120]
[422739280,1779340674000,-1562.31511574,0.00019165,120]
[422739282,1779340674000,-1562.31511574,0.00019165,120]
[422739284,1779340674000,-1562.31511574,0.00019165,120]
[422739283,1779340674000,-1562.31511574,0.00019165,120]
[422739281,1779340674000,-1562.31511574,0.00019165,120]
[422739279,1779340674000,-1562.31511574,0.00019165,120]
[422739278,1779340674000,-1562.31511574,0.00019165,120]
[422739277,1779340674000,-1562.31511574,0.00019165,120]
[422739288,1779340674000,-1562.31511574,0.00019165,120]
[422739276,1779340674000,-1562.31511574,0.00019165,120]
[422739275,1779340674000,-1562.31511574,0.00019165,120]
[422739273,1779340674000,-1562.31511574,0.00019165,120]
[422739271,1779340674000,-1562.31511574,0.00019165,120]
[422739272,1779340674000,-1562.31511574,0.00019165,120]
[422739269,1779340674000,-1562.31511574,0.00019165,120]
[422739270,1779340674000,-1562.31511574,0.00019165,120]
[422739268,1779340674000,-1562.31511574,0.00019165,120]
[422739274,1779340674000,-1562.31511574,0.00019165,120]
[422739285,1779340674000,-1562.31511574,0.00019165,120]
[422739307,1779340674000,-1012.09377298,0.00019165,120]
[422739287,1779340674000,-1562.31511574,0.00019165,120]
[422739286,1779340674000,-1562.31511574,0.00019165,120]
[422739305,1779340674000,-192.66373055,0.00019165,120]
[422739306,1779340674000,-1012.09377299,0.00019165,120]
[422739304,1779340674000,-192.66373055,0.00019165,120]
[422739303,1779340674000,-192.66373055,0.00019165,120]
[422739302,1779340674000,-744.46789185,0.00019165,120]
[422739300,1779340674000,-152.4106802,0.00019165,120]
[422739299,1779340674000,-161.72349687,0.00019165,120]
[422739298,1779340674000,-3000.0,0.00019165,120]
[422739301,1779340674000,-152.41068019,0.00019165,120]
[422739296,1779340674000,-1562.31511574,0.00019165,120]
[422739295,1779340674000,-1562.31511574,0.00019165,120]
[422739294,1779340674000,-1562.31511574,0.00019165,120]
[422739293,1779340674000,-1562.31511574,0.00019165,120]
[422739292,1779340674000,-1562.31511574,0.00019165,120]
[422739291,1779340674000,-1562.31511574,0.00019165,120]
[422739289,1779340674000,-1562.31511574,0.00019165,120]
[422739297,1779340674000,-1562.31511574,0.00019165,120]
[422739290,1779340674000,-1562.31511574,0.00019165,120]
[422739320,1779340675000,-14574.78509976,0.00019165,120]
[422739322,1779340675000,-2068.03,0.00019165,120]
[422739323,1779340675000,-157.24805996,0.00019165,120]
[422739321,1779340675000,-14574.78509976,0.00019165,120]
[422739326,1779340675000,-1456.79333855,0.00019165,120]
[422739317,1779340675000,-14574.78509976,0.00019165,120]
[422739319,1779340675000,-14574.78509976,0.00019165,120]
[422739318,1779340675000,-14574.78509976,0.00019165,120]
[422739309,1779340675000,-174.92042424,0.00019165,120]
[422739314,1779340675000,-14574.78509976,0.00019165,120]
[422739315,1779340675000,-14574.78509976,0.00019165,120]
[422739313,1779340675000,-14574.78509976,0.00019165,120]
[422739310,1779340675000,-240.58456163,0.00019165,120]
[422739312,1779340675000,-14574.78509976,0.00019165,120]
[422739311,1779340675000,-14574.78509976,0.00019165,120]
[422739308,1779340675000,-174.92042425,0.00019165,120]
[422739325,1779340675000,-157.24805996,0.00019165,120]
[422739316,1779340675000,-14574.78509976,0.00019165,120]
[422739324,1779340675000,-1456.79333855,0.00019165,120]
[422739333,1779340675000,-157.24805996,0.00019165,120]
[422739327,1779340675000,-157.24805996,0.00019165,120]
[422739346,1779340675000,-1456.79333855,0.00019165,120]
[422739345,1779340675000,-1456.79333855,0.00019165,120]
[422739344,1779340675000,-1456.79333855,0.00019165,120]
[422739343,1779340675000,-1456.79333855,0.00019165,120]
[422739340,1779340675000,-1456.79333855,0.00019165,120]
[422739328,1779340675000,-1456.79333855,0.00019165,120]
[422739341,1779340675000,-1456.79333855,0.00019165,120]
[422739338,1779340675000,-1456.79333855,0.00019165,120]
[422739342,1779340675000,-1456.79333855,0.00019165,120]
[422739337,1779340675000,-157.24805996,0.00019165,120]
[422739339,1779340675000,-1456.79333855,0.00019165,120]
[422739336,1779340675000,-1456.79333855,0.00019165,120]
[422739334,1779340675000,-1456.79333855,0.00019165,120]
[422739332,1779340675000,-1456.79333855,0.00019165,120]
[422739331,1779340675000,-157.24805996,0.00019165,120]
[422739330,1779340675000,-1456.79333855,0.00019165,120]
[422739329,1779340675000,-157.24805996,0.00019165,120]
[422739335,1779340675000,-157.24805996,0.00019165,120]
[422739347,1779340676000,-1456.79333855,0.00019165,120]
[422739349,1779340676000,-1456.79333855,0.00019165,120]
[422739348,1779340676000,-1456.79333855,0.00019165,120]
[422739350,1779340676000,-1456.79333855,0.00019165,120]
[422739351,1779340676000,-1456.79333855,0.00019165,120]
[422739353,1779340676000,-1456.79333855,0.00019165,120]
[422739352,1779340676000,-1456.79333855,0.00019165,120]
[422739355,1779340676000,-1063.98584054,0.00019165,120]
[422739356,1779340676000,-1063.98584054,0.00019165,120]
[422739362,1779340676000,-284.474499,0.00019165,120]
[422739361,1779340676000,-168.33289556,0.00019165,120]
[422739359,1779340676000,-1063.98584054,0.00019165,120]
[422739354,1779340676000,-1063.98584054,0.00019165,120]
[422739357,1779340676000,-1063.98584054,0.00019165,120]
[422739358,1779340676000,-1063.98584054,0.00019165,120]
[422739360,1779340676000,-1063.98584051,0.00019165,120]
[422739368,1779340756000,151.0,0.000178,120]
[422739369,1779340758000,226.15420203,0.00012476,60]
[422739371,1779340766000,204.85607151,0.0001141,60]
[422739372,1779340774000,197.6504685,0.0001145,60]
[422739373,1779340781000,189.44086088,0.00011453,60]
[422739374,1779340789000,182.42270955,0.00011455,60]
[422739375,1779340796000,151.0,0.000178,120]
[422739378,1779340826000,151.0,0.000178,120]
[422739380,1779340866000,151.0,0.000178,120]
[422740092,1779340896000,151.0,0.000178,120]
[422740114,1779340923000,1631.52195893,0.000178,120]
[422740116,1779340929000,2675.0556,0.00017807,120]
[422740118,1779340936000,151.0,0.000178,120]
[422740120,1779340976000,151.0,0.000178,120]
[422740121,1779340977000,2005.33941756,0.00017808,120]
[422740122,1779341010000,200.0,0.00017272,120]
[422740123,1779341026000,151.0,0.000178,120]
[422740125,1779341066000,151.0,0.000178,120]
[422740127,1779341106000,151.0,0.000178,120]
[422740128,1779341136000,151.0,0.000178,120]
[422740131,1779341176000,151.0,0.000178,120]
[422740132,1779341186000,480.0,0.00017808,120]
[422740144,1779341216000,151.0,0.000178,120]
[422740145,1779341230000,410.363,0.00017807,120]
[422740147,1779341250000,200.0,0.00017026,120]
[422740148,1779341256000,151.0,0.000178,120]
[422740149,1779341296000,151.0,0.000178,120]
[422740150,1779341303000,151.0,6.806e-05,2]
[422740151,1779341322000,200.0,6.668e-05,2]
[422740152,1779341324000,200.0,6.668e-05,7]
[422740153,1779341370000,200.0,0.0001721,120]
[422740156,1779341405000,162.7801116,6.673e-05,2]
[422740220,1779341438000,-605.33453534,7.018e-05,2]
[422740209,1779341438000,-605.33453534,7.018e-05,2]
[422740222,1779341438000,-605.33453534,7.018e-05,2]
[422740213,1779341438000,-100.68721693,7.018e-05,2]
[422740219,1779341438000,-605.33453534,7.018e-05,2]
[422740205,1779341438000,-106.25559884,7.018e-05,2]
[422740215,1779341438000,-605.33453534,7.018e-05,2]
[422740211,1779341438000,-504.64731841,7.018e-05,2]
[422740224,1779341438000,-458.00751336,7.018e-05,2]
[422740203,1779341438000,-605.33453534,7.018e-05,2]
[422740199,1779341438000,-605.33453534,7.018e-05,2]
[422740201,1779341438000,-605.33453534,7.018e-05,2]
[422740194,1779341438000,-605.33453534,7.018e-05,2]
[422740196,1779341438000,-605.33453534,7.018e-05,2]
[422740192,1779341438000,-561.90921303,7.018e-05,2]
[422740190,1779341438000,-43.42532231,7.018e-05,2]
[422740186,1779341438000,-1200.0,7.017e-05,2]
[422740197,1779341438000,-605.33453534,7.018e-05,2]
[422740188,1779341438000,-692.47378637,7.017e-05,2]
[422740184,1779341438000,-300.0,7.017e-05,2]
[422740217,1779341438000,-605.33453534,7.018e-05,2]
[422740207,1779341438000,-499.0789365,7.018e-05,2]
[422740227,1779341438000,-147.32702198,7.018e-05,2]
[422740229,1779341438000,-343.37765137,7.018e-05,2]
[422740233,1779341438000,-474.59750615,7.018e-05,2]
[422740231,1779341438000,-156.62234863,7.018e-05,2]
[422740283,1779341438000,-500.0,7.018e-05,2]
[422740281,1779341438000,-500.0,7.018e-05,2]
[422740269,1779341438000,-605.33453534,7.018e-05,2]
[422740279,1779341438000,-500.0,7.018e-05,2]
[422740277,1779341438000,-500.0,7.018e-05,2]
[422740275,1779341438000,-500.0,7.018e-05,2]
[422740273,1779341438000,-500.0,7.018e-05,2]
[422740263,1779341438000,-341.29200423,7.018e-05,2]
[422740260,1779341438000,-605.33453534,7.018e-05,2]
[422740257,1779341438000,-500.0,7.018e-05,2]
[422740271,1779341438000,-500.0,7.018e-05,2]
[422740253,1779341438000,-500.0,7.018e-05,2]
[422740255,1779341438000,-500.0,7.018e-05,2]
[422740285,1779341438000,-500.0,7.018e-05,2]
[422740237,1779341438000,-605.33453534,7.018e-05,2]
[422740235,1779341438000,-500.0,7.018e-05,2]
[422740241,1779341438000,-605.33453534,7.018e-05,2]
[422740239,1779341438000,-500.0,7.018e-05,2]
[422740251,1779341438000,-500.0,7.018e-05,2]
[422740249,1779341438000,-605.33453534,7.018e-05,2]
[422740243,1779341438000,-147.13639719,7.018e-05,2]
[422740245,1779341438000,-410.64249649,7.018e-05,2]
[422740247,1779341438000,-500.0,7.018e-05,2]
[422740325,1779341439000,-183.48793948,7.019e-05,2]
[422740308,1779341439000,-635.60126211,7.018e-05,2]
[422740320,1779341439000,-286816.01837806,7.019e-05,2]
[422740318,1779341439000,-6812.77627157,7.019e-05,2]
[422740316,1779341439000,-305149.17072124,7.019e-05,2]
[422740314,1779341439000,-172924.49179213,7.019e-05,2]
[422740310,1779341439000,-635.60126211,7.018e-05,2]
[422740312,1779341439000,-503.53181262,7.019e-05,2]
[422740299,1779341439000,-635.60126211,7.018e-05,2]
[422740304,1779341439000,-635.60126211,7.018e-05,2]
[422740297,1779341439000,-635.60126211,7.018e-05,2]
[422740293,1779341439000,-635.60126211,7.018e-05,2]
[422740306,1779341439000,-635.60126211,7.018e-05,2]
[422740301,1779341439000,-635.60126211,7.018e-05,2]
[422740302,1779341439000,-635.60126211,7.018e-05,2]
[422740291,1779341439000,-605.33453534,7.018e-05,2]
[422740287,1779341439000,-500.0,7.018e-05,2]
[422740289,1779341439000,-605.33453534,7.018e-05,2]
[422740327,1779341439000,-183.48793947,7.054e-05,2]
[422740295,1779341439000,-635.60126211,7.018e-05,2]
[422740323,1779341439000,-31974.20550457,7.019e-05,2]
[422740339,1779341439000,-300.0,7.362e-05,2]
[422740331,1779341439000,-183.48793947,7.123e-05,2]
[422740377,1779341439000,-24940.14232746,7.6e-05,2]
[422740375,1779341439000,-6332.39815017,7.6e-05,2]
[422740371,1779341439000,-47800.40741126,7.6e-05,2]
[422740365,1779341439000,-600.0,7.362e-05,2]
[422740329,1779341439000,-183.48793947,7.088e-05,2]
[422740361,1779341439000,-300.0,7.362e-05,2]
[422740363,1779341439000,-300.0,7.362e-05,2]
[422740357,1779341439000,-300.0,7.362e-05,2]
[422740350,1779341439000,-300.0,7.362e-05,2]
[422740348,1779341439000,-300.0,7.362e-05,2]
[422740359,1779341439000,-300.0,7.362e-05,2]
[422740342,1779341439000,-300.0,7.362e-05,2]
[422740353,1779341439000,-300.0,7.362e-05,2]
[422740341,1779341439000,-300.0,7.362e-05,2]
[422740344,1779341439000,-300.0,7.362e-05,2]
[422740355,1779341439000,-300.0,7.362e-05,2]
[422740333,1779341439000,-161.3008,7.188e-05,2]
[422740337,1779341439000,-300.0,7.362e-05,2]
[422740335,1779341439000,-300.0,7.362e-05,2]
[422740346,1779341439000,-300.0,7.362e-05,2]
[422740532,1779341441000,-2970.76681362,7.6e-05,2]
[422740533,1779341441000,-2044.6527224,7.6e-05,2]
[422740534,1779341441000,-670.94,7.6e-05,2]
[422740536,1779341441000,-673.65800602,7.6e-05,2]
[422740541,1779341441000,-1128.17371129,7.6e-05,2]
[422740538,1779341441000,-8191.8754174,7.6e-05,2]
[422740539,1779341441000,-8436.55671742,7.6e-05,2]
[422740543,1779341441000,-1043.44113708,7.6e-05,2]
[422740542,1779341441000,-2381.40494975,7.6e-05,2]
[422740535,1779341441000,-653.0,7.6e-05,2]
[422740558,1779341444000,-12633.43205016,7.6e-05,2]
[422740556,1779341444000,-382.91828592,7.6e-05,2]
[422740561,1779341444000,-1588.66910052,7.6e-05,2]
[422740563,1779341444000,-9341.07543023,7.6e-05,2]
[422740560,1779341444000,-300.0,7.6e-05,2]
[422740557,1779341444000,-48011.38165589,7.6e-05,2]
[422740562,1779341444000,-407.64,7.6e-05,2]
[422740559,1779341444000,-639.07376946,7.6e-05,2]
[422740574,1779341447000,-2175.04686616,7.6e-05,2]
[422740575,1779341447000,-483.90748233,7.6e-05,2]
[422740577,1779341447000,-35360.80702767,7.6e-05,2]
[422740578,1779341447000,-420.0,7.719e-05,2]
[422740579,1779341447000,-300.0,7.751e-05,2]
[422740581,1779341447000,-188.44066353,8e-05,2]
[422740582,1779341447000,-152.0,8.108e-05,7]
[422740583,1779341447000,-152.0,8.151e-05,30]
[422740580,1779341447000,-300.0,7.751e-05,2]
[422740585,1779341447000,-503.81228834,8.219e-05,2]
[422740584,1779341447000,-1647.7343,8.219e-05,2]
[422740576,1779341447000,-7835.03076403,7.6e-05,2]
[422740588,1779341447000,-620.23,8.219e-05,2]
[422740590,1779341447000,-360.09478697,8.219e-05,2]
[422740595,1779341447000,-985.6,8.219e-05,2]
[422740598,1779341447000,-500.0,8.219e-05,2]
[422740596,1779341447000,-623.34,8.219e-05,2]
[422740594,1779341447000,-500.0,8.219e-05,2]
[422740597,1779341447000,-508.01003174,8.219e-05,2]
[422740593,1779341447000,-500.0,8.219e-05,2]
[422740591,1779341447000,-900.36,8.219e-05,2]
[422740586,1779341447000,-500.0,8.219e-05,2]
[422740587,1779341447000,-169.54580337,8.219e-05,2]
[422740589,1779341447000,-500.0,8.219e-05,2]
[422740592,1779341447000,-4697.42,8.219e-05,2]
[422740623,1779341448000,-160.0,8.452e-05,2]
[422740624,1779341448000,-766.48970852,8.452e-05,2]
[422740627,1779341448000,-1647.7343,8.493e-05,2]
[422740628,1779341448000,-500.0,8.493e-05,2]
[422740626,1779341448000,-587.0,8.49e-05,2]
[422740630,1779341448000,-900.36,8.493e-05,2]
[422740629,1779341448000,-500.0,8.493e-05,2]
[422740631,1779341448000,-4697.42,8.493e-05,2]
[422740632,1779341448000,-500.0,8.493e-05,2]
[422740638,1779341448000,-742.19,8.493e-05,2]
[422740636,1779341448000,-500.0,8.493e-05,2]
[422740633,1779341448000,-500.0,8.493e-05,2]
[422740635,1779341448000,-623.34,8.493e-05,2]
[422740637,1779341448000,-500.0,8.493e-05,2]
[422740642,1779341448000,-500.0,8.493e-05,2]
[422740639,1779341448000,-500.0,8.493e-05,2]
[422740640,1779341448000,-894.28,8.493e-05,2]
[422740641,1779341448000,-500.0,8.493e-05,2]
[422740622,1779341448000,-161.7158655,8.452e-05,2]
[422740634,1779341448000,-985.6,8.493e-05,2]
[422740625,1779341448000,-160.0,8.452e-05,2]
[422740608,1779341448000,-510.12,8.219e-05,2]
[422740620,1779341448000,-575.17,8.219e-05,2]
[422740599,1779341448000,-500.0,8.219e-05,2]
[422740601,1779341448000,-500.0,8.219e-05,2]
[422740600,1779341448000,-742.19,8.219e-05,2]
[422740602,1779341448000,-894.28,8.219e-05,2]
[422740603,1779341448000,-500.0,8.219e-05,2]
[422740605,1779341448000,-500.0,8.219e-05,2]
[422740604,1779341448000,-500.0,8.219e-05,2]
[422740606,1779341448000,-500.0,8.219e-05,2]
[422740613,1779341448000,-644.72,8.219e-05,2]
[422740621,1779341448000,-500.0,8.219e-05,2]
[422740615,1779341448000,-3209.71,8.219e-05,2]
[422740610,1779341448000,-517.66,8.219e-05,2]
[422740609,1779341448000,-500.0,8.219e-05,2]
[422740607,1779341448000,-925.4,8.219e-05,2]
[422740612,1779341448000,-500.0,8.219e-05,2]
[422740614,1779341448000,-794.34,8.219e-05,2]
[422740618,1779341448000,-500.0,8.219e-05,2]
[422740619,1779341448000,-500.0,8.219e-05,2]
[422740617,1779341448000,-500.0,8.219e-05,2]
[422740616,1779341448000,-151.62656856,8.219e-05,2]
[422740611,1779341448000,-500.0,8.219e-05,2]
[422740644,1779341448000,-500.0,8.493e-05,2]
[422740652,1779341448000,-794.34,8.493e-05,2]
[422740643,1779341448000,-500.0,8.493e-05,2]
[422740673,1779341448000,-500.0,8.767e-05,2]
[422740672,1779341448000,-623.34,8.767e-05,2]
[422740676,1779341448000,-500.0,8.767e-05,2]
[422740674,1779341448000,-500.0,8.767e-05,2]
[422740675,1779341448000,-742.19,8.767e-05,2]
[422740678,1779341448000,-500.0,8.767e-05,2]
[422740677,1779341448000,-894.28,8.767e-05,2]
[422740681,1779341448000,-500.0,8.767e-05,2]
[422740680,1779341448000,-500.0,8.767e-05,2]
[422740679,1779341448000,-500.0,8.767e-05,2]
[422740683,1779341448000,-510.12,8.767e-05,2]
[422740682,1779341448000,-925.4,8.767e-05,2]
[422740685,1779341448000,-517.66,8.767e-05,2]
[422740684,1779341448000,-500.0,8.767e-05,2]
[422740686,1779341448000,-500.0,8.767e-05,2]
[422740687,1779341448000,-500.0,8.767e-05,2]
[422740689,1779341448000,-794.34,8.767e-05,2]
[422740688,1779341448000,-644.72,8.767e-05,2]
[422740690,1779341448000,-1432.83406386,8.767e-05,2]
[422740670,1779341448000,-500.0,8.767e-05,2]
[422740668,1779341448000,-4697.42,8.767e-05,2]
[422740671,1779341448000,-985.6,8.767e-05,2]
[422740658,1779341448000,-500.0,8.493e-05,2]
[422740646,1779341448000,-510.12,8.493e-05,2]
[422740648,1779341448000,-517.66,8.493e-05,2]
[422740647,1779341448000,-500.0,8.493e-05,2]
[422740649,1779341448000,-500.0,8.493e-05,2]
[422740651,1779341448000,-644.72,8.493e-05,2]
[422740650,1779341448000,-500.0,8.493e-05,2]
[422740653,1779341448000,-3209.71,8.493e-05,2]
[422740655,1779341448000,-500.0,8.493e-05,2]
[422740654,1779341448000,-369.00222011,8.493e-05,2]
[422740669,1779341448000,-500.0,8.767e-05,2]
[422740645,1779341448000,-925.4,8.493e-05,2]
[422740656,1779341448000,-500.0,8.493e-05,2]
[422740660,1779341448000,-1413.0,8.747e-05,2]
[422740663,1779341448000,-185.0,8.747e-05,2]
[422740662,1779341448000,-742.0,8.747e-05,2]
[422740665,1779341448000,-500.0,8.767e-05,2]
[422740661,1779341448000,-443.0,8.747e-05,2]
[422740659,1779341448000,-2203.0,8.747e-05,2]
[422740666,1779341448000,-500.0,8.767e-05,2]
[422740667,1779341448000,-900.36,8.767e-05,2]
[422740664,1779341448000,-1647.7343,8.767e-05,2]
[422740657,1779341448000,-575.17,8.493e-05,2]